bitfinex/quotes_BTCUSD_20241206
["timestamp","ask_amount","ask_price","bid_price","bid_amount"]
[1733491455686,0.0008665,97860.0,97859.0,1.2520108]
[1733491455896,0.0008662,97880.0,97879.0,0.204333]
[1733491456104,0.00103998,97880.0,97879.0,0.328533]
[1733491456960,0.00103998,97880.0,97879.0,0.4835206]
[1733491457177,0.00203998,97880.0,97879.0,0.4835206]
[1733491457390,0.00503998,97880.0,97879.0,0.4835206]
[1733491457801,0.00403998,97880.0,97879.0,0.4835206]
[1733491458018,0.00503998,97880.0,97879.0,0.79581873]
[1733491458225,0.00503998,97880.0,97879.0,0.70445209]
[1733491458432,0.00503998,97880.0,97879.0,0.79577762]
[1733491458636,0.00503998,97880.0,97879.0,1.04156223]
[1733491458844,0.00203998,97880.0,97879.0,1.0415491]
[1733491459066,0.00503998,97880.0,97879.0,1.0415491]
[1733491459281,0.00203998,97880.0,97879.0,1.0415491]
[1733491459713,0.00203998,97880.0,97879.0,1.23308112]
[1733491459924,0.00203998,97880.0,97879.0,0.8505491]
[1733491460145,0.00203998,97880.0,97879.0,0.5475206]
[1733491460592,0.204262,97914.0,97883.0,0.04995606]
[1733491460814,0.204265,97912.0,97901.0,0.204286]
[1733491461658,0.0009987,97914.0,97901.0,0.204286]
[1733491461867,0.204262,97913.0,97901.0,0.204286]
[1733491462328,0.204262,97913.0,97897.0,0.204294]
[1733491462531,0.204283,97904.0,97898.0,0.00102134]
[1733491462733,0.204279,97906.0,97892.0,0.204304]
[1733491462979,0.204279,97906.0,97895.0,0.204298]
[1733491463189,0.204279,97906.0,97901.0,0.001]
[1733491463589,0.204279,97906.0,97888.0,0.04995606]
[1733491463590,0.0209279,97906.0,97883.0,0.04995606]
[1733491463789,0.0209279,97906.0,97836.0,0.67298784]
[1733491463790,1.704279,97905.0,97885.0,0.00102139]
[1733491463963,1.704279,97905.0,97885.0,0.10605293]
[1733491464183,1.5,97905.0,97885.0,0.10605293]
[1733491464591,0.0009987,97914.0,97888.0,0.04995606]
[1733491464794,0.0009987,97914.0,97907.0,0.204275]
[1733491464994,0.0009987,97914.0,97903.0,0.286883]
[1733491465201,0.204256,97917.0,97903.0,0.286883]
[1733491465202,0.204256,97917.0,97905.0,0.204279]
[1733491465383,0.20425,97919.0,97908.0,0.204271]
[1733491465723,0.204244,97922.0,97908.0,0.204271]
[1733491466134,0.005,97914.0,97913.0,0.204262]
[1733491466346,0.0009838,97923.0,97913.0,0.204262]
[1733491466552,0.0009838,97923.0,97915.0,0.204258]
[1733491466757,0.007,97919.0,97915.0,0.204258]
[1733491466977,0.007,97919.0,97915.0,0.408516]
[1733491467192,0.002,97917.0,97915.0,0.408516]
[1733491467614,0.00717429,97919.0,97916.0,0.00102118]
[1733491467827,0.00717429,97919.0,97917.0,0.204254]
[1733491468038,0.00317429,97919.0,97918.0,0.08142114]
[1733491468454,0.00017429,97919.0,97918.0,0.08142114]
[1733491469069,0.00117429,97919.0,97918.0,0.08142114]
[1733491469477,0.00017429,97919.0,97918.0,0.08142114]
[1733491469683,0.00117429,97919.0,97918.0,0.08142114]
[1733491470093,0.00117429,97919.0,97918.0,0.00102114]
[1733491470302,0.00117429,97919.0,97917.0,0.204254]
[1733491470508,0.00117429,97919.0,97918.0,0.00102116]
[1733491472401,0.00117429,97919.0,97912.0,0.204264]
[1733491472402,0.00117429,97919.0,97913.0,0.00102117]
[1733491472611,0.00117429,97919.0,97914.0,0.20426]
[1733491472812,0.00117429,97919.0,97914.0,0.20528117]
[1733491473680,0.00117429,97919.0,97915.0,0.204258]
[1733491473898,0.00117429,97919.0,97917.0,0.204254]
[1733491474310,0.00117429,97919.0,97912.0,0.204264]
[1733491474517,0.00117429,97919.0,97913.0,0.00102117]
[1733491474922,0.00017429,97919.0,97914.0,0.20426]
[1733491475349,0.00117429,97919.0,97914.0,0.20426]
[1733491475554,0.00017429,97919.0,97914.0,0.20426]
[1733491475765,0.00017429,97919.0,97915.0,0.00102117]
[1733491475969,0.00117429,97919.0,97915.0,0.00102117]
[1733491476177,0.00117429,97919.0,97914.0,0.20426]
[1733491476394,0.00017429,97919.0,97915.0,0.00102117]
[1733491477184,0.00117429,97919.0,97915.0,0.00102117]
[1733491478031,0.00117429,97919.0,97911.0,0.0010212]
[1733491478246,0.00117429,97919.0,97912.0,0.204265]
[1733491478450,0.00117429,97919.0,97907.0,0.204274]
[1733491478655,0.00117429,97919.0,97909.0,0.204271]
[1733491478862,0.00117429,97919.0,97911.0,0.204267]
[1733491479069,0.00117429,97919.0,97913.0,0.204262]
[1733491479070,0.00017429,97919.0,97913.0,0.204262]
[1733491479285,0.204255,97917.0,97914.0,0.00102118]
[1733491479497,0.0752,97915.0,97882.0,0.09101113]
[1733491479737,0.02052813,97918.0,97873.0,0.204346]
[1733491479738,0.0752,97913.0,97873.0,0.204346]
[1733491479986,0.20431,97891.0,97876.0,0.204338]
[1733491480201,0.13075917,97912.0,97874.0,0.204344]
[1733491480202,0.13012805,97912.0,97874.0,0.204344]
[1733491480445,0.13012805,97912.0,97873.0,0.10503154]
[1733491480446,0.00063112,97911.0,97870.0,0.204351]
[1733491480657,0.204325,97883.0,97882.0,0.007]
[1733491480912,0.204335,97879.0,97869.0,0.204354]
[1733491481532,0.204325,97883.0,97869.0,0.204354]
[1733491481941,0.204325,97883.0,97872.0,0.204346]
[1733491482176,0.26571907,97883.0,97872.0,0.204346]
[1733491482787,0.2052937,97889.0,97869.0,0.20452778]
[1733491482788,0.0009807,97889.0,97869.0,0.20452778]
[1733491483013,0.204346,97874.0,97869.0,0.00017378]
[1733491483289,0.204336,97878.0,97869.0,0.00017378]
[1733491484330,0.204336,97878.0,97869.0,0.00417378]
[1733491484546,0.204336,97878.0,97869.0,0.00519542]
[1733491484779,0.204336,97878.0,97869.0,0.00719542]
[1733491485398,0.204336,97878.0,97869.0,0.00319542]
[1733491485805,0.204336,97878.0,97869.0,0.00519542]
[1733491486876,0.204325,97883.0,97870.0,0.204352]
[1733491486877,0.204327,97882.0,97870.0,0.204352]
[1733491487091,0.204325,97884.0,97871.0,0.00102159]
[1733491487296,0.204325,97884.0,97869.0,0.31355932]
[1733491487297,0.204325,97884.0,97872.0,0.20536958]
[1733491487939,0.2656199,97884.0,97872.0,0.20536958]
[1733491488719,0.204315,97888.0,97875.0,0.20434]
[1733491488929,0.204315,97888.0,97876.0,0.00102156]
[1733491489257,0.204315,97888.0,97877.0,0.00102156]
[1733491489480,0.0009896,97892.0,97869.0,0.00017378]
[1733491489481,0.23506266,97887.0,97869.0,0.00017378]
[1733491489698,0.02360523,97886.0,97870.0,0.001]
[1733491489901,0.204349,97872.0,97870.0,0.001]
[1733491490110,0.204349,97872.0,97869.0,0.00017378]
[1733491490321,0.408698,97872.0,97869.0,0.00017378]
[1733491490526,0.204352,97870.0,97869.0,0.00017378]
[1733491492459,0.207352,97870.0,97869.0,0.00017378]
[1733491492873,0.208352,97870.0,97869.0,0.00017378]
[1733491493835,0.2704561,97870.0,97869.0,0.00017378]
[1733491494099,0.208352,97870.0,97869.0,0.00017378]
[1733491497903,0.004,97870.0,97869.0,0.00017378]
[1733491498790,0.204334,97879.0,97869.0,0.00017378]
[1733491499227,0.004,97870.0,97869.0,0.00017378]
[1733491499472,0.001,97870.0,97869.0,0.00017378]
[1733491499688,0.0008646,97880.0,97873.0,0.204344]
[1733491500201,0.0008646,97880.0,97876.0,0.204338]
[1733491500437,0.002,97879.0,97877.0,0.20535858]
[1733491500672,0.0008646,97880.0,97879.0,0.25428906]
[1733491500888,0.0008646,97880.0,97879.0,0.3593206]
[1733491501103,0.204294,97898.0,97884.0,0.204323]
[1733491501292,0.0009938,97910.0,97885.0,0.00102146]
[1733491501533,0.204295,97898.0,97886.0,0.204319]
[1733491501746,0.204312,97890.0,97879.0,0.10503154]
[1733491501956,0.204293,97899.0,97880.0,0.0010215]
[1733491502582,0.204284,97903.0,97892.0,0.204305]
[1733491502790,0.01149625,97909.0,97892.0,0.204305]
[1733491502998,0.204284,97903.0,97892.0,0.204305]
[1733491503206,0.204276,97907.0,97895.0,0.204298]
[1733491503819,0.2052651,97909.0,97890.0,0.20431]
[1733491503820,0.204284,97903.0,97890.0,0.20431]
[1733491504025,0.204284,97903.0,97892.0,0.204306]
[1733491504233,0.204277,97906.0,97893.0,0.00102143]
[1733491504439,0.204277,97906.0,97894.0,0.204302]
[1733491505269,0.002,97903.0,97894.0,0.204302]
[1733491505684,0.204277,97906.0,97894.0,0.204302]
[1733491505888,0.207277,97906.0,97894.0,0.204302]
[1733491506098,0.205277,97906.0,97894.0,0.204302]
[1733491506288,0.001,97906.0,97877.0,0.04995606]
[1733491506541,0.204298,97897.0,97877.0,0.04995606]
[1733491506752,0.204298,97897.0,97887.0,0.204315]
[1733491506981,0.204298,97897.0,97876.0,0.204339]
[1733491506982,0.000994,97900.0,97888.0,0.00102145]
[1733491507196,0.000994,97900.0,97889.0,0.204313]
[1733491507406,0.001,97906.0,97890.0,0.20533138]
[1733491507583,0.20428,97905.0,97890.0,0.20533138]
[1733491507790,0.20428,97905.0,97894.0,0.204302]
[1733491508000,0.004,97906.0,97894.0,0.204302]
[1733491508001,0.004,97906.0,97895.0,0.00102139]
[1733491508209,0.003,97906.0,97900.0,0.204288]
[1733491508632,0.004,97906.0,97900.0,0.204288]
[1733491508842,0.001,97906.0,97900.0,0.204288]
[1733491509054,0.0008646,97910.0,97900.0,0.204288]
[1733491509472,0.001,97906.0,97900.0,0.204288]
[1733491509698,0.001,97906.0,97896.0,0.204298]
[1733491509920,0.004,97906.0,97897.0,0.00102135]
[1733491510147,0.204273,97909.0,97898.0,0.204294]
[1733491510353,0.204273,97909.0,97900.0,0.001]
[1733491510784,0.204273,97909.0,97898.0,0.204294]
[1733491512062,0.003,97906.0,97898.0,0.204294]
[1733491512538,0.206273,97909.0,97898.0,0.204294]
[1733491512747,0.211273,97909.0,97898.0,0.205294]
[1733491512958,0.204273,97909.0,97898.0,0.204294]
[1733491513393,0.004,97906.0,97902.0,0.204285]
[1733491513631,0.001,97906.0,97903.0,0.0010213]
[1733491514686,0.005,97909.0,97903.0,0.0010213]
[1733491514897,0.204273,97908.0,97898.0,0.001]
[1733491515153,0.204283,97904.0,97898.0,0.001]
[1733491515364,0.204288,97901.0,97889.0,0.204311]
[1733491515587,0.204282,97904.0,97891.0,0.204308]
[1733491515799,0.204282,97904.0,97892.0,0.2053274]
[1733491516864,0.207282,97904.0,97892.0,0.4096334]
[1733491517094,0.207282,97904.0,97895.0,0.204298]
[1733491517314,0.00103675,97910.0,97904.0,0.20428]
[1733491517548,0.00103675,97910.0,97897.0,0.0802]
[1733491517746,0.00103675,97910.0,97901.0,0.204286]
[1733491518129,0.00103675,97910.0,97898.0,0.204294]
[1733491518283,0.001,97904.0,97892.0,0.204305]
[1733491518488,0.004,97904.0,97892.0,0.204305]
[1733491518692,0.004,97904.0,97896.0,0.204298]
[1733491518693,0.003,97904.0,97896.0,0.204298]
[1733491518892,0.00103675,97910.0,97892.0,0.204305]
[1733491519130,0.204283,97904.0,97901.0,0.001]
[1733491519327,0.204283,97904.0,97894.0,0.204302]
[1733491519737,0.207283,97904.0,97894.0,0.204302]
[1733491520361,0.210283,97904.0,97894.0,0.204302]
[1733491520570,0.006,97904.0,97897.0,0.204294]
[1733491520772,0.006,97904.0,97898.0,0.204294]
[1733491521110,0.006,97904.0,97894.0,0.204301]
[1733491521324,0.204283,97903.0,97894.0,0.204301]
[1733491522429,0.206283,97903.0,97894.0,0.204301]
[1733491523738,0.002,97903.0,97894.0,0.204301]
[1733491523941,0.204285,97902.0,97894.0,0.204301]
[1733491525198,0.206285,97902.0,97894.0,0.204301]
[1733491525634,0.002,97902.0,97894.0,0.204301]
[1733491525854,0.002,97902.0,97901.0,0.204288]
[1733491526840,0.002,97902.0,97901.0,0.23621973]
[1733491527447,0.002,97902.0,97901.0,0.31741973]
[1733491527832,0.00103675,97910.0,97909.0,0.204271]
[1733491528204,0.00103675,97910.0,97909.0,0.3592586]
[1733491528611,0.00103675,97910.0,97909.0,0.49631135]
[1733491529221,0.00103675,97910.0,97909.0,0.3592586]
[1733491529427,0.00103675,97910.0,97909.0,0.3612586]
[1733491529635,0.00103675,97910.0,97909.0,0.3592586]
[1733491530278,0.00103675,97910.0,97909.0,0.45063487]
[1733491530865,0.00203675,97910.0,97909.0,0.45663487]
[1733491531100,0.00203675,97910.0,97909.0,0.45863487]
[1733491531311,0.00203675,97910.0,97909.0,0.008]
[1733491531518,0.00203675,97910.0,97909.0,0.006]
[1733491531696,0.00203675,97910.0,97909.0,0.0070212]
[1733491531937,0.00203675,97910.0,97909.0,0.0090212]
[1733491533790,0.00203675,97910.0,97909.0,0.008]
[1733491533996,0.00203675,97910.0,97909.0,0.0090212]
[1733491535248,0.00203675,97910.0,97909.0,0.0040612]
[1733491536775,0.00203675,97910.0,97909.0,0.10909274]
[1733491537949,0.00203675,97910.0,97909.0,0.57786866]
[1733491538118,0.284201,97943.0,97919.0,0.20425]
[1733491538358,0.2851961,97943.0,97919.0,0.20425]
[1733491538565,0.204209,97939.0,97919.0,0.20425]
[1733491538785,0.00063112,97938.0,97919.0,0.20425]
[1733491539415,0.204224,97932.0,97919.0,0.20425]
[1733491539625,0.204231,97928.0,97919.0,0.20425]
[1733491539835,0.20422,97934.0,97919.0,0.20425]
[1733491540457,0.204228,97930.0,97919.0,0.20425]
[1733491540665,0.20421,97939.0,97919.0,0.20825]
[1733491540868,0.00063112,97938.0,97919.0,0.20825]
[1733491541108,0.204216,97936.0,97919.0,0.20825]
[1733491541314,0.20421,97939.0,97919.0,0.20825]
[1733491541315,0.204231,97929.0,97919.0,0.004]
[1733491541520,0.204231,97929.0,97919.0,0.00502112]
[1733491541766,0.204213,97937.0,97919.0,0.00502112]
[1733491541976,0.0809951,97943.0,97919.0,0.00502112]
[1733491541977,0.204205,97941.0,97919.0,0.00502112]
[1733491542181,0.204205,97941.0,97919.0,0.11005266]
[1733491542397,0.2851961,97943.0,97919.0,0.11005266]
[1733491543542,0.2851961,97943.0,97919.0,0.4478011]
[1733491543776,0.2851961,97943.0,97931.0,0.204224]
[1733491544730,0.2971961,97943.0,97931.0,0.204224]
[1733491544971,0.2881961,97943.0,97931.0,0.204224]
[1733491545397,0.0929951,97943.0,97932.0,0.204223]
[1733491545639,0.0929951,97943.0,97929.0,0.204229]
[1733491545844,0.0929951,97943.0,97935.0,0.204215]
[1733491546259,0.089,97943.0,97935.0,0.204215]
[1733491546470,0.092,97943.0,97935.0,0.204215]
[1733491546671,0.003,97943.0,97935.0,0.204215]
[1733491546906,0.003,97943.0,97939.0,0.204207]
[1733491547116,0.009,97943.0,97939.0,0.408415]
[1733491547328,0.009,97943.0,97933.0,0.09149278]
[1733491547329,0.003,97943.0,97935.0,0.09149278]
[1733491547540,0.003,97943.0,97940.0,0.00102092]
[1733491547783,0.008,97943.0,97940.0,0.00102092]
[1733491547995,0.000865,97950.0,97940.0,0.20522692]
[1733491548207,0.000865,97950.0,97940.0,0.2967197]
[1733491548208,0.00358076,97943.0,97940.0,0.2967197]
[1733491548431,0.01158076,97943.0,97942.0,0.204202]
[1733491548638,0.00358076,97943.0,97942.0,0.204202]
[1733491548845,0.00358076,97943.0,97942.0,0.29569478]
[1733491549065,0.00358076,97943.0,97942.0,0.62315421]
[1733491549292,0.00358076,97943.0,97942.0,0.84660192]
[1733491549518,0.000865,97950.0,97942.0,0.84660192]
[1733491549519,0.000865,97950.0,97949.0,0.25414306]
[1733491549727,0.000865,97950.0,97949.0,0.58780962]
[1733491549940,0.00103915,97950.0,97949.0,0.92556183]
[1733491550364,0.00103915,97950.0,97949.0,0.69692681]
[1733491550574,0.00103915,97950.0,97949.0,0.74692681]
[1733491550820,0.00103915,97950.0,97949.0,0.89892681]
[1733491551689,0.00103915,97950.0,97949.0,0.89692681]
[1733491551902,0.00103915,97950.0,97949.0,0.90192681]
[1733491553027,0.00103915,97950.0,97949.0,0.89892681]
[1733491553236,0.00103915,97950.0,97949.0,0.90092681]
[1733491553667,0.00103915,97950.0,97949.0,0.90492681]
[1733491554498,0.00103915,97950.0,97949.0,1.13305099]
[1733491555138,0.00103915,97950.0,97949.0,0.90492681]
[1733491555560,0.00103915,97950.0,97949.0,0.91515642]
[1733491556413,0.00103915,97950.0,97949.0,1.14320831]
[1733491556641,0.00103915,97950.0,97949.0,0.91515642]
[1733491556869,0.00103915,97950.0,97949.0,1.14320831]
[1733491557090,0.00103915,97950.0,97949.0,0.91515642]
[1733491557560,0.00103915,97950.0,97949.0,1.08950781]
[1733491557770,0.00103915,97950.0,97949.0,0.91115642]
[1733491557993,0.00203915,97950.0,97949.0,0.91615642]
[1733491558209,0.00203915,97950.0,97949.0,0.91215642]
[1733491558460,0.00203915,97950.0,97949.0,0.005]
[1733491558688,0.204179,97954.0,97949.0,0.005]
[1733491558906,0.204182,97952.0,97949.0,0.005]
[1733491559151,0.204181,97952.0,97949.0,0.00517415]
[1733491559418,0.4287812,97952.0,97949.0,0.00517415]
[1733491559644,0.408363,97952.0,97949.0,0.00017415]
[1733491559897,0.001,97950.0,97949.0,0.00817415]
[1733491560121,0.204181,97952.0,97949.0,0.00317415]
[1733491560355,0.204181,97952.0,97949.0,0.00417415]
[1733491560356,0.408362,97952.0,97949.0,0.00417415]
[1733491560595,0.408362,97952.0,97949.0,0.00617415]
[1733491560826,0.408362,97952.0,97949.0,0.00217415]
[1733491561548,0.408362,97952.0,97949.0,0.00317415]
[1733491561789,0.204181,97952.0,97949.0,0.00317415]
[1733491562011,0.280185,97950.0,97949.0,0.00317415]
[1733491562962,0.280185,97950.0,97949.0,0.00117415]
[1733491563202,0.280185,97950.0,97949.0,0.00017415]
[1733491563475,0.280185,97950.0,97949.0,0.00117415]
[1733491563707,0.282185,97950.0,97949.0,0.00117415]
[1733491563930,0.282185,97950.0,97949.0,0.00017415]
[1733491563931,0.280185,97950.0,97949.0,0.00017415]
[1733491564438,0.286185,97950.0,97949.0,0.00117415]
[1733491564670,0.280185,97950.0,97949.0,0.00017415]
[1733491566156,0.3510391,97950.0,97949.0,0.00017415]
[1733491566385,0.45607064,97950.0,97949.0,0.00017415]
[1733491566609,0.43701654,97950.0,97949.0,0.00017415]
[1733491568326,0.43788054,97950.0,97949.0,0.00017415]
[1733491569021,0.44388054,97950.0,97949.0,0.00117415]
[1733491569491,0.43588054,97950.0,97949.0,0.00017415]
[1733491569716,0.43588054,97950.0,97949.0,0.00117415]
[1733491569717,0.44388054,97950.0,97949.0,0.00117415]
[1733491570704,0.44188054,97950.0,97949.0,0.00117415]
[1733491570938,0.43788054,97950.0,97949.0,0.00017415]
[1733491571157,0.50456079,97950.0,97949.0,0.00017415]
[1733491572541,0.52756079,97950.0,97949.0,0.00017415]
[1733491572766,0.3787,97940.0,97920.0,0.0017286]
[1733491572992,0.204246,97921.0,97920.0,0.0017286]
[1733491573214,0.38937754,97921.0,97920.0,0.0017286]
[1733491573476,0.45900214,97921.0,97920.0,0.0017286]
[1733491574620,0.45900214,97921.0,97920.0,0.0027286]
[1733491574842,0.45900214,97921.0,97920.0,0.0017286]
[1733491575053,0.48200214,97921.0,97920.0,0.0017286]
[1733491575717,0.53200214,97921.0,97920.0,6e-07]
[1733491575944,0.53400214,97921.0,97920.0,6e-07]
[1733491576420,0.53200214,97921.0,97920.0,6e-07]
[1733491576844,0.54100214,97921.0,97920.0,6e-07]
[1733491577050,2.04100214,97921.0,97920.0,6e-07]
[1733491577269,1.98600214,97921.0,97920.0,6e-07]
[1733491577493,2.02357754,97921.0,97920.0,6e-07]
[1733491578172,2.07357754,97921.0,97920.0,6e-07]
[1733491578395,0.204285,97902.0,97901.0,0.03193173]
[1733491578598,0.30931654,97902.0,97901.0,0.03193173]
[1733491578805,0.33544897,97902.0,97901.0,0.03193173]
[1733491579014,0.46564897,97902.0,97901.0,0.03193173]
[1733491579222,0.48864897,97902.0,97901.0,0.03193173]
[1733491579864,0.48864897,97902.0,97901.0,0.03251249]
[1733491580099,0.49564897,97902.0,97901.0,4.9e-07]
[1733491580335,0.48864897,97902.0,97901.0,4.9e-07]
[1733491580569,1.99664897,97902.0,97901.0,4.9e-07]
[1733491580795,1.99964897,97902.0,97901.0,4.9e-07]
[1733491581025,1.99164897,97902.0,97901.0,4.9e-07]
[1733491581253,0.45151654,97902.0,97901.0,4.9e-07]
[1733491581466,0.44251654,97902.0,97901.0,4.9e-07]
[1733491582109,0.43951654,97902.0,97901.0,4.9e-07]
[1733491582333,0.44451654,97902.0,97901.0,4.9e-07]
[1733491582557,0.31431654,97902.0,97901.0,4.9e-07]
[1733491582805,0.31831654,97902.0,97901.0,4.9e-07]
[1733491583529,0.009,97902.0,97901.0,4.9e-07]
[1733491583758,0.005,97902.0,97901.0,4.9e-07]
[1733491583977,0.11903154,97902.0,97901.0,4.9e-07]
[1733491584189,0.11066266,97902.0,97901.0,4.9e-07]
[1733491584635,0.013,97902.0,97901.0,4.9e-07]
[1733491584874,0.04778722,97902.0,97901.0,4.9e-07]
[1733491585082,0.04278722,97902.0,97901.0,4.9e-07]
[1733491585292,0.14781876,97902.0,97901.0,4.9e-07]
[1733491585517,0.15081876,97902.0,97901.0,4.9e-07]
[1733491585727,0.27451876,97902.0,97901.0,4.9e-07]
[1733491585941,0.27088764,97902.0,97901.0,4.9e-07]
[1733491586161,0.27588764,97902.0,97901.0,4.9e-07]
[1733491586367,0.27088764,97902.0,97901.0,4.9e-07]
[1733491586581,0.27288764,97902.0,97901.0,4.9e-07]
[1733491588745,0.14918764,97902.0,97901.0,4.9e-07]
[1733491588959,0.14981876,97902.0,97901.0,4.9e-07]
[1733491589450,0.10766266,97902.0,97901.0,4.9e-07]
[1733491594610,0.002,97902.0,97901.0,4.9e-07]
[1733491595846,0.204285,97903.0,97901.0,4.9e-07]
[1733491596077,0.30931654,97903.0,97901.0,4.9e-07]
[1733491596719,0.00063112,97902.0,97901.0,4.9e-07]
[1733491596926,0.05205349,97902.0,97901.0,4.9e-07]
[1733491597133,0.00063112,97902.0,97901.0,4.9e-07]
[1733491597586,0.204276,97907.0,97901.0,4.9e-07]
[1733491597799,0.204268,97911.0,97901.0,4.9e-07]
[1733491597800,0.204268,97911.0,97902.0,0.0778]
[1733491598011,0.10566266,97910.0,97902.0,0.0778]
[1733491598214,0.00063112,97917.0,97902.0,0.0778]
[1733491598433,0.00063112,97916.0,97907.0,0.204274]
[1733491598636,0.09903674,97938.0,97911.0,0.204267]
[1733491598846,0.20424,97924.0,97911.0,0.204267]
[1733491599060,0.40848,97924.0,97911.0,0.204267]
[1733491599270,0.30927154,97924.0,97911.0,0.204267]
[1733491599694,0.30927154,97924.0,97903.0,0.204283]
[1733491599695,0.10503154,97924.0,97912.0,0.204265]
[1733491599901,0.10566266,97924.0,97913.0,0.204262]
[1733491600110,0.001,97921.0,97913.0,0.204262]
[1733491600338,0.001,97921.0,97910.0,0.0473]
[1733491600518,0.001,97921.0,97916.0,0.204256]
[1733491600778,0.001,97921.0,97910.0,0.0473]
[1733491600779,0.204248,97920.0,97910.0,0.0473]
[1733491600989,0.0205248,97920.0,97910.0,0.0473]
[1733491601198,0.001,97921.0,97910.0,0.251567]
[1733491601403,0.204253,97918.0,97906.0,0.204275]
[1733491602027,0.204247,97921.0,97910.0,0.204268]
[1733491602263,0.20425,97919.0,97910.0,0.204268]
[1733491602470,0.20425,97919.0,97910.0,0.2069976]
[1733491602904,0.0408497,97918.0,97910.0,0.2069976]
[1733491603135,0.0408497,97918.0,97910.0,0.2059976]
[1733491603361,0.0408497,97918.0,97910.0,0.0027296]
[1733491603575,0.204256,97916.0,97910.0,0.0027296]
[1733491603802,0.204262,97914.0,97910.0,0.0037296]
[1733491604027,0.204262,97914.0,97910.0,0.0017296]
[1733491604028,0.05623396,97913.0,97910.0,0.0017296]
[1733491604242,0.204265,97912.0,97910.0,0.0017296]
[1733491604450,0.00063112,97911.0,97910.0,0.0027296]
[1733491605762,0.00063112,97911.0,97910.0,0.0017296]
[1733491606619,0.00163112,97911.0,97910.0,0.0017296]
[1733491606835,0.08352074,97911.0,97910.0,0.0017296]
[1733491607261,0.18855228,97911.0,97910.0,0.0017296]
[1733491607898,0.27085228,97911.0,97910.0,0.0017296]
[1733491608100,0.27022116,97911.0,97910.0,0.0017296]
[1733491608762,0.26922116,97911.0,97910.0,0.0017296]
[1733491609008,0.27222116,97911.0,97910.0,0.0017296]
[1733491609224,0.26922116,97911.0,97910.0,0.0017296]
[1733491609411,0.28022116,97911.0,97910.0,0.0017296]
[1733491609876,0.27122116,97911.0,97910.0,0.0017296]
[1733491610099,0.29619741,97911.0,97910.0,0.0017296]
[1733491610962,0.29419741,97911.0,97910.0,0.0017296]
[1733491611190,0.29719741,97911.0,97910.0,0.0017296]
[1733491611903,0.13300779,97911.0,97910.0,0.0017296]
[1733491612110,0.13363891,97911.0,97910.0,0.0017296]
[1733491623375,0.28363891,97911.0,97910.0,0.0017296]
[1733491623591,0.28300779,97911.0,97910.0,0.0017296]
[1733491626414,0.15,97910.0,97902.0,0.0796296]
[1733491626649,0.204279,97906.0,97902.0,0.0796296]
[1733491626886,0.02797625,97911.0,97902.0,0.0796296]
[1733491627128,0.012,97911.0,97902.0,0.0796296]
[1733491627331,0.204255,97917.0,97904.0,0.204281]
[1733491627799,0.011,97910.0,97904.0,0.204281]
[1733491628005,0.003,97910.0,97904.0,0.204281]
[1733491628219,0.204255,97917.0,97904.0,0.204281]
[1733491628419,0.003,97911.0,97904.0,0.204281]
[1733491629012,0.207267,97911.0,97903.0,0.01764277]
[1733491629242,0.204269,97910.0,97903.0,0.01764277]
[1733491629659,0.003,97911.0,97903.0,0.22192477]
[1733491629877,0.204269,97910.0,97903.0,0.01764277]
[1733491630121,0.204279,97905.0,97903.0,0.01764277]
[1733491630330,0.2249948,97910.0,97903.0,0.01764277]
[1733491630543,0.204273,97908.0,97903.0,0.01864277]
[1733491630777,0.0217258,97910.0,97903.0,0.01864277]
[1733491630778,0.408555,97906.0,97903.0,0.01864277]
[1733491630990,0.204281,97904.0,97903.0,0.01864277]
[1733491631201,0.30931254,97904.0,97903.0,0.01864277]
[1733491632869,0.30931254,97904.0,97903.0,0.01764277]
[1733491633705,0.31631254,97904.0,97903.0,0.01764277]
[1733491633912,0.31131254,97904.0,97903.0,0.01764277]
[1733491634096,0.38524006,97904.0,97903.0,0.01764277]
[1733491634304,0.39024006,97904.0,97903.0,0.01764277]
[1733491634534,0.38624006,97904.0,97903.0,0.01764277]
[1733491634789,0.39124006,97904.0,97903.0,0.01764277]
[1733491634999,0.39024006,97904.0,97903.0,0.01764277]
[1733491636505,0.38524006,97904.0,97903.0,0.01764277]
[1733491636939,0.38624006,97904.0,97903.0,0.01764277]
[1733491638656,0.53624006,97904.0,97903.0,0.01764277]
[1733491639717,0.53524006,97904.0,97903.0,0.01764277]
[1733491639921,0.54324006,97904.0,97903.0,0.01764277]
[1733491640348,0.54124006,97904.0,97903.0,0.01764277]
[1733491640766,0.54324006,97904.0,97903.0,0.01764277]
[1733491640974,0.46731254,97904.0,97903.0,0.01764277]
[1733491646233,0.212281,97904.0,97903.0,0.01764277]
[1733491651963,0.46731254,97904.0,97903.0,0.01764277]
[1733491652609,0.54361254,97904.0,97903.0,0.01764277]
[1733491653208,0.58831254,97904.0,97903.0,0.01764277]
[1733491653421,0.71020746,97904.0,97903.0,0.01764277]
[1733491653631,0.72320746,97904.0,97903.0,0.01764277]
[1733491653986,0.71420746,97904.0,97903.0,0.01764277]
[1733491654444,0.72320746,97904.0,97903.0,0.01764277]
[1733491654616,0.71420746,97904.0,97903.0,0.01764277]
[1733491654820,0.72320746,97904.0,97903.0,0.01764277]
[1733491655218,0.71020746,97904.0,97903.0,0.01764277]
[1733491655619,0.71420746,97904.0,97903.0,0.01764277]
[1733491656045,0.71020746,97904.0,97903.0,0.01764277]
[1733491656447,0.71520746,97904.0,97903.0,0.01764277]
[1733491656768,0.71020746,97904.0,97903.0,0.01764277]
[1733491657197,0.72420746,97904.0,97903.0,0.01764277]
[1733491657824,2.22420746,97904.0,97903.0,0.01764277]
[1733491658295,2.27420746,97904.0,97903.0,0.01764277]
[1733491658500,2.22420746,97904.0,97903.0,0.01764277]
[1733491658704,2.27420746,97904.0,97903.0,0.01764277]
[1733491659287,2.27420746,97904.0,97903.0,7.7e-07]
[1733491659537,0.77420746,97904.0,97903.0,7.7e-07]
[1733491660066,2.32420746,97904.0,97903.0,7.7e-07]
[1733491661003,2.31520746,97904.0,97903.0,7.7e-07]
[1733491661225,2.32420746,97904.0,97903.0,7.7e-07]
[1733491661399,0.82420746,97904.0,97903.0,7.7e-07]
[1733491661645,0.83063729,97904.0,97903.0,7.7e-07]
[1733491661843,0.83763729,97904.0,97903.0,7.7e-07]
[1733491662365,0.83063729,97904.0,97903.0,7.7e-07]
[1733491662877,2.34663729,97904.0,97903.0,7.7e-07]
[1733491663631,2.34663729,97904.0,97900.0,8.6e-07]